bitfinex/quotes_BTCUSD_20240718
["timestamp","ask_amount","ask_price","bid_price","bid_amount"]
[1721262688305,0.3103225,64306.0,64305.0,0.15438174]
[1721262688712,0.3103225,64306.0,64305.0,0.004]
[1721262688713,0.6213345,64306.0,64305.0,0.004]
[1721262688910,0.9323465,64306.0,64305.0,0.004]
[1721262689113,1.2433585,64306.0,64305.0,0.004]
[1721262689274,0.6207225,64294.0,64293.0,0.04956147]
[1721262689705,0.0096165,64284.0,64283.0,0.04636245]
[1721262689906,0.07717479,64294.0,64267.0,0.04636245]
[1721262689907,0.0096165,64269.0,64267.0,0.04636245]
[1721262690109,0.0666,64274.0,64268.0,0.15438174]
[1721262690349,0.0096165,64269.0,64268.0,0.15438174]
[1721262690543,0.0096165,64260.0,64259.0,1.29706245]
[1721262690726,0.0629,64261.0,64259.0,1.51887371]
[1721262690928,0.0629,64261.0,64260.0,0.15438174]
[1721262691106,0.0725165,64261.0,64260.0,0.15438174]
[1721262691717,0.0629,64261.0,64260.0,0.15438174]
[1721262691944,0.0725165,64261.0,64260.0,0.15438174]
[1721262692476,0.0096165,64268.0,64267.0,0.311201]
[1721262692612,0.0096165,64268.0,64267.0,0.62118274]
[1721262692795,0.0096165,64268.0,64267.0,0.15438174]
[1721262692999,0.1652145,64268.0,64267.0,0.15438174]
[1721262693821,0.0096165,64261.0,64260.0,0.024]
[1721262694048,0.0096165,64261.0,64260.0,0.16838174]
[1721262694477,0.0096165,64261.0,64260.0,0.15438174]
[1721262694922,0.0096165,64261.0,64260.0,0.16738174]
[1721262696242,0.0096165,64261.0,64260.0,0.18138174]
[1721262696451,0.0096165,64261.0,64260.0,0.16838174]
[1721262696690,0.0096165,64268.0,64260.0,0.16838174]
[1721262696924,0.0096165,64266.0,64265.0,0.155605]
[1721262697144,0.0096165,64268.0,64267.0,0.1556]
[1721262697327,0.0496414,64273.0,64265.0,0.46559274]
[1721262697328,0.0096165,64266.0,64265.0,0.155603]
[1721262697501,0.0096165,64266.0,64265.0,0.466814]
[1721262697699,0.0096165,64267.0,64266.0,0.466809]
[1721262698074,0.0096165,64267.0,64266.0,0.155603]
[1721262698458,0.0096165,64267.0,64266.0,0.62119074]
[1721262699500,0.0096165,64267.0,64266.0,0.62819074]
[1721262700540,0.0592579,64273.0,64272.0,0.311177]
[1721262700773,0.0496414,64273.0,64272.0,0.93232374]
[1721262700993,0.0608,64278.0,64272.0,0.93232374]
[1721262700994,0.0096165,64274.0,64273.0,0.77793]
[1721262701197,0.0096165,64274.0,64273.0,0.93231174]
[1721262701633,0.0096165,64274.0,64273.0,0.62113974]
[1721262701860,0.0096165,64274.0,64273.0,0.15438174]
[1721262702091,0.8488335,64274.0,64273.0,0.15438174]
[1721262702525,0.5376665,64274.0,64273.0,0.15438174]
[1721262702933,0.5376665,64274.0,64273.0,0.15738174]
[1721262703767,0.2264995,64274.0,64273.0,0.15738174]
[1721262703976,0.311158,64276.0,64273.0,0.16338174]
[1721262704181,0.0096165,64274.0,64273.0,0.164586]
[1721262704395,0.0096165,64274.0,64273.0,0.466758]
[1721262704633,0.0096165,64274.0,64273.0,0.155586]
[1721262704868,0.0116165,64274.0,64273.0,0.155586]
[1721262705280,0.0096165,64274.0,64273.0,0.155586]
[1721262705476,0.0096165,64274.0,64273.0,0.161586]
[1721262705859,0.0096165,64274.0,64273.0,0.164586]
[1721262706018,0.0096165,64274.0,64273.0,0.009]
[1721262706614,0.0096165,64274.0,64273.0,0.164586]
[1721262707164,0.0096165,64275.0,64274.0,0.155583]
[1721262707373,0.0096165,64275.0,64274.0,0.30996474]
[1721262708377,0.0096165,64282.0,64274.0,0.16138174]
[1721262708561,0.05928099,64286.0,64284.0,0.311119]
[1721262708770,0.05928099,64286.0,64275.0,0.3457]
[1721262708771,0.04966449,64286.0,64285.0,0.155557]
[1721262708998,0.0096165,64286.0,64285.0,0.466671]
[1721262709208,0.0096165,64289.0,64286.0,0.311109]
[1721262709403,0.0096165,64289.0,64288.0,0.46665]
[1721262709606,0.0096165,64289.0,64288.0,0.15555]
[1721262710043,0.0096165,64278.0,64277.0,0.466727]
[1721262710244,0.0096165,64278.0,64277.0,0.62110874]
[1721262710440,0.0096165,64278.0,64277.0,0.72110874]
[1721262710666,0.155557,64285.0,64280.0,0.155568]
[1721262710990,0.0096165,64281.0,64280.0,0.155568]
[1721262712175,0.0096165,64285.0,64284.0,0.777797]
[1721262712377,0.0096165,64285.0,64284.0,0.15438174]
[1721262713197,0.0096165,64285.0,64284.0,0.30994074]
[1721262713787,0.0096165,64285.0,64284.0,0.62105974]
[1721262714428,0.002794,64290.0,64284.0,0.66949574]
[1721262714645,0.002794,64290.0,64285.0,0.46549574]
[1721262714646,0.0096165,64286.0,64285.0,0.46549574]
[1721262715034,0.0096165,64286.0,64285.0,0.93216674]
[1721262715444,0.0096165,64286.0,64285.0,0.30993874]
[1721262715792,0.0750165,64286.0,64285.0,0.30993874]
[1721262716016,0.2305705,64286.0,64285.0,0.15438174]
[1721262716221,0.9310885,64286.0,64285.0,0.15438174]
[1721262716397,0.6199795,64286.0,64285.0,0.15438174]
[1721262716775,0.6199795,64286.0,64285.0,0.16438174]
[1721262717215,0.6199795,64286.0,64285.0,0.17238174]
[1721262717419,0.6199795,64286.0,64285.0,0.16438174]
[1721262717749,0.6199795,64286.0,64285.0,0.15438174]
[1721262717873,0.6199795,64286.0,64285.0,0.15538174]
[1721262719355,0.5416795,64286.0,64285.0,0.15538174]
[1721262719556,0.2305705,64286.0,64285.0,0.15438174]
[1721262719898,0.2305705,64286.0,64285.0,0.15538174]
[1721262720164,0.0096165,64286.0,64285.0,0.15538174]
[1721262721089,0.0096165,64286.0,64285.0,0.31093874]
[1721262721295,0.0096165,64286.0,64285.0,0.30993874]
[1721262721909,0.0096165,64286.0,64285.0,0.62105274]
[1721262722227,0.0096165,64286.0,64285.0,0.62205274]
[1721262722427,0.0096165,64286.0,64285.0,0.62105274]
[1721262722826,0.0096165,64286.0,64285.0,0.62605274]
[1721262723270,0.0096165,64286.0,64285.0,0.62405274]
[1721262723516,0.0096165,64286.0,64285.0,0.63105274]
[1721262723724,0.00083,64287.0,64286.0,0.777772]
[1721262723923,0.00083,64287.0,64286.0,0.93215374]
[1721262725255,0.00083,64287.0,64286.0,0.93915374]
[1721262725469,0.00083,64287.0,64286.0,0.93215374]
[1721262725686,0.00083,64287.0,64286.0,0.93915374]
[1721262726107,0.00083,64287.0,64286.0,1.39856274]
[1721262726323,0.00083,64287.0,64286.0,1.61723731]
[1721262726743,0.00083,64287.0,64286.0,1.60823731]
[1721262726948,0.00083,64287.0,64286.0,1.97356631]
[1721262727162,0.00083,64287.0,64286.0,1.98256631]
[1721262727613,0.00083,64287.0,64286.0,1.96656631]
[1721262727822,0.00083,64287.0,64286.0,1.65545731]
[1721262728020,0.00083,64287.0,64286.0,1.64078037]
[1721262728257,0.00083,64287.0,64286.0,1.63278036]
[1721262728612,0.00083,64287.0,64286.0,1.66978036]
[1721262728825,0.00083,64287.0,64286.0,1.65578036]
[1721262728980,0.00083,64287.0,64286.0,1.63278036]
[1721262729180,0.00083,64287.0,64286.0,1.64678036]
[1721262729383,0.00083,64287.0,64286.0,1.66078036]
[1721262729789,0.00083,64287.0,64286.0,1.64678036]
[1721262730238,0.00083,64287.0,64286.0,1.66078036]
[1721262730674,0.00083,64287.0,64286.0,1.64678036]
[1721262731224,0.00083,64287.0,64286.0,1.64684575]
[1721262731456,0.00083,64287.0,64286.0,1.56478274]
[1721262731668,0.00083,64287.0,64286.0,1.65583643]
[1721262732094,0.00083,64287.0,64286.0,1.68383643]
[1721262732524,0.00083,64287.0,64286.0,1.66983643]
[1721262732737,0.00083,64287.0,64286.0,1.68383643]
[1721262732947,0.00083,64287.0,64286.0,2.00894543]
[1721262733363,0.00083,64287.0,64286.0,1.99494543]
[1721262733577,0.00083,64287.0,64286.0,2.00894543]
[1721262733982,0.00083,64287.0,64286.0,1.98094543]
[1721262734185,0.00083,64287.0,64286.0,1.99494543]
[1721262734802,0.00083,64287.0,64286.0,2.00894543]
[1721262735284,0.00083,64287.0,64286.0,1.68383643]
[1721262736029,0.00083,64287.0,64286.0,1.69783643]
[1721262736839,0.00083,64287.0,64286.0,1.70745343]
[1721262737250,0.00083,64287.0,64286.0,1.70929583]
[1721262738065,0.00083,64287.0,64286.0,1.68129583]
[1721262738381,0.00083,64287.0,64286.0,1.59469583]
[1721262738584,0.00083,64287.0,64286.0,1.60869583]
[1721262738798,0.00083,64287.0,64286.0,1.59469583]
[1721262739650,0.00083,64287.0,64286.0,1.60869583]
[1721262740303,0.00083,64287.0,64286.0,1.60826561]
[1721262740732,0.00083,64287.0,64286.0,1.48779974]
[1721262740936,0.00083,64287.0,64286.0,1.60778715]
[1721262744073,0.0104465,64287.0,64286.0,0.87864915]
[1721262744279,0.3133985,64287.0,64286.0,0.18238174]
[1721262745091,0.6245025,64287.0,64286.0,0.16838174]
[1721262745311,0.1578465,64287.0,64286.0,0.16838174]
[1721262745511,0.3133985,64287.0,64286.0,0.17938174]
[1721262745958,0.0104465,64287.0,64286.0,0.62104474]
[1721262746153,0.0104465,64287.0,64286.0,0.62504474]
[1721262747373,0.0104465,64287.0,64286.0,0.62704474]
[1721262748016,0.0104465,64287.0,64286.0,0.62104474]
[1721262748431,0.0104465,64287.0,64286.0,0.63704474]
[1721262749401,0.0104465,64287.0,64286.0,0.17038174]
[1721262749567,0.0132405,64287.0,64286.0,0.17038174]
[1721262749995,0.0104465,64287.0,64286.0,0.17038174]
[1721262750424,0.1659985,64287.0,64286.0,0.17038174]
[1721262750634,0.1659985,64287.0,64286.0,0.16338174]
[1721262750635,0.0104465,64287.0,64286.0,0.16338174]
[1721262750826,0.0132405,64287.0,64286.0,0.17038174]
[1721262751031,0.0132405,64287.0,64286.0,0.16138174]
[1721262751195,0.0104465,64287.0,64286.0,0.16138174]
[1721262751382,0.0104465,64287.0,64286.0,0.17038174]
[1721262751696,0.0104465,64287.0,64286.0,0.32593574]
[1721262751891,0.0104465,64287.0,64286.0,0.17038174]
[1721262752411,0.0132405,64287.0,64286.0,0.16138174]
[1721262752616,0.003624,64287.0,64286.0,0.16138174]
[1721262752814,0.003624,64287.0,64286.0,0.16538174]
[1721262753420,0.0132405,64287.0,64286.0,0.15838174]
[1721262753964,0.0132405,64287.0,64286.0,0.16138174]
[1721262754209,0.0132405,64287.0,64286.0,0.15838174]
[1721262754210,0.0104465,64287.0,64286.0,0.15838174]
[1721262754402,0.0104465,64287.0,64286.0,0.62504474]
[1721262754609,0.00083,64287.0,64286.0,0.93415374]
[1721262754791,0.00083,64287.0,64286.0,1.66724486]
[1721262755006,0.00083,64287.0,64286.0,1.66924486]
[1721262755450,0.00083,64287.0,64286.0,1.68624486]
[1721262755667,0.00083,64287.0,64286.0,2.06375386]
[1721262755870,0.00083,64287.0,64286.0,2.24990811]
[1721262756107,0.00083,64287.0,64286.0,2.66451542]
[1721262756274,0.00083,64287.0,64286.0,2.66450023]
[1721262756482,0.00083,64287.0,64286.0,2.66450072]
[1721262756688,0.00083,64287.0,64286.0,2.59674755]
[1721262756921,0.00083,64287.0,64286.0,2.68977138]
[1721262757126,0.00083,64287.0,64286.0,3.28938411]
[1721262757326,0.00083,64287.0,64286.0,3.29538411]
[1721262757489,0.00083,64287.0,64286.0,3.30438411]
[1721262757899,0.00083,64287.0,64286.0,3.29238411]
[1721262758118,0.00083,64287.0,64286.0,3.28338411]
[1721262758477,0.00083,64287.0,64286.0,3.31138411]
[1721262758670,0.00083,64287.0,64286.0,2.7819918]
[1721262758889,0.00083,64287.0,64286.0,2.77051446]
[1721262759094,0.00083,64287.0,64286.0,2.81089796]
[1721262759345,0.00083,64287.0,64286.0,3.51089702]
[1721262760350,0.0496219,64301.0,64300.0,0.2]
[1721262760576,0.0496219,64301.0,64300.0,1.56256529]
[1721262760725,0.0096165,64303.0,64302.0,0.77758]
[1721262760891,0.0096165,64303.0,64302.0,1.05150229]
[1721262761289,0.0096165,64308.0,64302.0,0.27392229]
[1721262761486,0.14733,64310.0,64309.0,0.155499]
[1721262761487,0.06463,64310.0,64309.0,0.155499]
[1721262761686,0.00083,64310.0,64309.0,0.62087874]
[1721262762239,0.00083,64310.0,64309.0,0.93187674]
[1721262763449,0.00083,64310.0,64309.0,1.03187674]
[1721262763600,0.00083,64310.0,64309.0,1.35087474]
[1721262764426,0.00083,64310.0,64309.0,1.35987474]
[1721262764864,0.00083,64310.0,64309.0,1.5028721]
[1721262765073,0.00083,64310.0,64309.0,1.53370755]
[1721262765278,0.00083,64310.0,64309.0,1.53369683]
[1721262765909,0.00083,64310.0,64309.0,0.39098383]
[1721262765910,0.1504465,64310.0,64309.0,0.39098383]
[1721262766054,0.1504465,64310.0,64309.0,0.17138174]
[1721262766282,0.3059425,64310.0,64309.0,0.17138174]
[1721262766478,0.3059425,64310.0,64309.0,0.16338174]
[1721262766691,0.3059425,64310.0,64309.0,0.15438174]
[1721262766873,0.0096165,64299.0,64294.0,0.311068]
[1721262767054,0.00083,64310.0,64297.0,0.62096574]
[1721262767055,0.0699165,64298.0,64297.0,0.62096574]
[1721262767561,0.0603,64298.0,64297.0,0.62096574]
[1721262768022,0.0096165,64299.0,64298.0,0.466576]
[1721262768216,0.0096165,64299.0,64298.0,0.72095774]
[1721262769185,0.0096165,64301.0,64300.0,0.15552]
[1721262769403,0.0609,64303.0,64300.0,0.15438174]
[1721262769404,0.0096165,64302.0,64300.0,0.15438174]
[1721262769610,0.0096165,64302.0,64301.0,0.30989974]
[1721262770170,0.0096165,64306.0,64301.0,0.15438174]
[1721262770377,0.0096165,64306.0,64303.0,0.311025]
[1721262770594,0.0096165,64307.0,64306.0,0.155506]
[1721262770808,0.0096165,64307.0,64306.0,0.15438174]
[1721262771409,0.0714165,64308.0,64307.0,0.155504]
[1721262771652,0.0714165,64308.0,64307.0,0.30988574]
[1721262772689,0.0096165,64309.0,64307.0,0.30988574]
[1721262772931,0.0096165,64309.0,64308.0,0.15438174]
[1721262773542,0.0132405,64310.0,64308.0,0.15438174]
[1721262773779,0.0104465,64310.0,64308.0,0.15438174]
[1721262773978,0.002794,64309.0,64308.0,0.15438174]
[1721262774151,0.0124105,64309.0,64308.0,0.15638174]
[1721262774388,0.0096165,64309.0,64308.0,0.16038174]
[1721262774592,0.0096165,64309.0,64308.0,0.15838174]
[1721262774766,0.0096165,64309.0,64308.0,0.15938174]
[1721262775017,0.0096165,64309.0,64308.0,0.15838174]
[1721262775226,0.003624,64310.0,64309.0,0.932994]
[1721262775449,0.003624,64310.0,64309.0,1.31787474]
[1721262775450,0.00083,64310.0,64309.0,1.31787474]
[1721262775642,0.00083,64310.0,64309.0,1.41787474]
[1721262776447,0.00083,64310.0,64309.0,1.81697274]
[1721262776586,0.00083,64310.0,64309.0,1.96735745]
[1721262777407,0.00083,64310.0,64309.0,1.98135745]
[1721262777618,0.00083,64310.0,64309.0,1.68435945]
[1721262777818,0.00083,64310.0,64309.0,1.55119474]
[1721262778062,0.00083,64310.0,64309.0,1.56519474]
[1721262778298,0.00083,64310.0,64309.0,1.67051031]
[1721262778492,0.00083,64310.0,64309.0,1.67050962]
[1721262778849,0.00083,64310.0,64309.0,1.55119474]
[1721262779055,0.00083,64310.0,64309.0,1.67015777]
[1721262779624,0.00083,64310.0,64309.0,1.68415777]
[1721262779858,0.00083,64310.0,64309.0,1.56519474]
[1721262780266,0.00083,64310.0,64309.0,1.6840508]
[1721262780491,0.00083,64310.0,64309.0,1.67001622]
[1721262781098,0.00083,64310.0,64309.0,1.55119474]
[1721262781457,0.00083,64310.0,64309.0,1.68401488]
[1721262781572,0.00083,64310.0,64309.0,1.61891488]
[1721262782725,0.00083,64310.0,64309.0,1.50009474]
[1721262782914,0.00083,64310.0,64309.0,1.61885626]
[1721262783181,0.00083,64310.0,64309.0,1.76233105]
[1721262783390,0.00083,64310.0,64309.0,1.80271455]
[1721262783589,0.00083,64310.0,64309.0,2.11371255]
[1721262783806,0.00083,64310.0,64309.0,2.09971255]
[1721262783923,0.00083,64310.0,64309.0,2.08571255]
[1721262784133,0.00083,64310.0,64309.0,2.09971255]
[1721262784342,0.00958214,64313.0,64312.0,1.399423]
[1721262784560,0.00958214,64313.0,64312.0,1.79556626]
[1721262784970,0.00958214,64313.0,64312.0,1.87106626]
[1721262785382,0.00958214,64313.0,64312.0,2.21654976]
[1721262785628,0.00958214,64313.0,64312.0,2.52566626]
[1721262785901,0.00958214,64313.0,64312.0,2.3013009]
[1721262786390,0.00958214,64313.0,64312.0,2.33252374]
[1721262786876,0.00958214,64313.0,64312.0,2.34652374]
[1721262787273,0.00958214,64313.0,64312.0,2.33252374]
[1721262788540,0.00958214,64313.0,64312.0,2.37290724]
[1721262788691,0.00958214,64313.0,64312.0,2.98586503]
[1721262788896,0.00958214,64313.0,64312.0,2.88066603]
[1721262789126,1e-08,64313.0,64312.0,3.16146708]
[1721262789329,1e-08,64313.0,64312.0,3.00012713]
[1721262789739,1e-08,64313.0,64312.0,3.20773189]
[1721262789925,1e-08,64313.0,64312.0,3.00012713]
[1721262790129,1e-08,64313.0,64312.0,3.70012713]
[1721262790328,1e-08,64313.0,64312.0,3.74639619]
[1721262790537,1e-08,64313.0,64312.0,3.9077308]
[1721262790941,1e-08,64313.0,64312.0,3.74639619]
[1721262791716,1e-08,64313.0,64312.0,3.04678584]
[1721262791820,1e-08,64313.0,64312.0,2.91332474]
[1721262792025,1e-08,64313.0,64312.0,3.03307982]
[1721262792230,1e-08,64313.0,64312.0,3.04707982]
[1721262792466,1e-08,64313.0,64312.0,3.01907982]
[1721262792688,1e-08,64313.0,64312.0,3.05946332]
[1721262792879,1e-08,64313.0,64312.0,3.07346332]
[1721262793094,1e-08,64313.0,64312.0,2.33307982]
[1721262793253,1e-08,64313.0,64312.0,2.31907982]
[1721262793479,1e-08,64313.0,64312.0,2.33307982]
[1721262794068,1e-08,64313.0,64312.0,2.31907982]
[1721262794285,1e-08,64313.0,64312.0,2.33307982]
[1721262794487,0.00961651,64313.0,64312.0,1.13533082]
[1721262794692,0.16510551,64313.0,64312.0,0.28813682]
[1721262794889,0.16510551,64313.0,64312.0,0.18238174]
[1721262795097,0.31330551,64313.0,64312.0,0.18238174]
[1721262795425,0.31330551,64313.0,64312.0,0.028]
[1721262795426,0.93526351,64313.0,64312.0,0.028]
[1721262795662,0.0096165,64303.0,64302.0,0.155515]
[1721262795872,0.1540165,64303.0,64302.0,0.30989674]
[1721262796091,0.1540165,64303.0,64302.0,0.68319874]
[1721262796283,0.1444,64303.0,64302.0,0.68319874]
[1721262796557,0.1444,64303.0,64302.0,0.93196074]
[1721262796681,0.0806,64309.0,64308.0,0.155501]
[1721262796884,0.0806,64309.0,64308.0,0.62088574]
[1721262797290,0.1444,64309.0,64308.0,0.62088574]
[1721262797485,0.1540165,64309.0,64308.0,0.62088574]
[1721262798140,0.1540165,64309.0,64308.0,0.62488574]
[1721262798296,0.1540165,64309.0,64308.0,0.31388274]
[1721262798521,0.6205135,64309.0,64308.0,0.15838174]
[1721262799059,0.6205135,64309.0,64308.0,0.16338174]
[1721262799362,0.610897,64309.0,64308.0,0.15838174]
[1721262799574,0.3095155,64309.0,64308.0,0.15838174]
[1721262799706,0.3095155,64309.0,64308.0,0.16438174]
[1721262800125,0.1540165,64309.0,64308.0,0.31388274]
[1721262800323,0.1540165,64309.0,64308.0,0.62088574]
[1721262800522,0.1540165,64309.0,64308.0,0.62188574]
[1721262801347,0.06000001,64313.0,64312.0,0.777457]
[1721262801578,0.00961651,64313.0,64312.0,1.24282174]
[1721262803086,0.00961651,64313.0,64312.0,1.25382174]
[1721262803881,0.00961651,64313.0,64312.0,1.26282174]
[1721262804476,1e-08,64313.0,64312.0,1.36282174]
[1721262804884,1e-08,64313.0,64312.0,1.48221513]
[1721262807389,1e-08,64313.0,64312.0,1.48209485]
[1721262809784,1e-08,64313.0,64312.0,1.89325264]
[1721262810199,1e-08,64313.0,64312.0,2.01213614]
[1721262810400,1e-08,64313.0,64312.0,2.4257495]
[1721262810635,1e-08,64313.0,64312.0,2.44193126]
[1721262810893,1e-08,64313.0,64312.0,2.45193126]
[1721262811110,0.025,64314.0,64313.0,1.4710085]
[1721262811327,0.025,64314.0,64313.0,2.28126815]
[1721262811547,0.025,64314.0,64313.0,3.36271747]
[1721262811785,0.025,64314.0,64313.0,3.01135497]
[1721262811974,0.025,64314.0,64313.0,3.05173847]
[1721262812617,0.025,64314.0,64313.0,3.13524984]
[1721262812893,0.025,64314.0,64313.0,3.37671747]
[1721262813106,0.025,64314.0,64313.0,4.10584499]
[1721262813281,0.025,64314.0,64313.0,3.45019239]
[1721262813485,0.025,64314.0,64313.0,3.27600674]
[1721262813696,0.025,64314.0,64313.0,3.78044396]
[1721262813896,0.025,64314.0,64313.0,3.74006046]
[1721262814080,0.025,64314.0,64313.0,3.84978589]
[1721262814265,0.025,64314.0,64313.0,3.78027205]
[1721262814446,0.025,64314.0,64313.0,4.238587]
[1721262814644,0.025,64314.0,64313.0,4.1842035]
[1721262815095,0.025,64314.0,64313.0,4.2122035]
[1721262815494,1e-06,64314.0,64313.0,4.238587]
[1721262816475,1e-06,64314.0,64313.0,3.59332169]
[1721262816852,1e-06,64314.0,64313.0,2.78678144]
[1721262816993,1e-06,64314.0,64313.0,2.749616]
[1721262817170,1e-06,64314.0,64313.0,2.70327402]
[1721262817378,1e-06,64314.0,64313.0,2.71727402]
[1721262817653,1e-06,64314.0,64313.0,2.70327402]
[1721262817800,1e-06,64314.0,64313.0,2.39229502]
[1721262818150,1e-06,64314.0,64313.0,1.752637]
[1721262818355,1e-06,64314.0,64313.0,1.766637]
[1721262818783,1e-06,64314.0,64313.0,1.752637]
[1721262819202,1e-06,64314.0,64313.0,1.775637]
[1721262819417,1e-06,64314.0,64313.0,1.78367852]
[1721262819629,1e-06,64314.0,64313.0,1.70220253]
[1721262819848,1e-06,64314.0,64313.0,2.13178829]
[1721262820040,1e-06,64314.0,64313.0,2.17217179]
[1721262820268,1e-06,64314.0,64313.0,2.13178829]
[1721262820463,1e-06,64314.0,64313.0,2.24171177]
[1721262820685,1e-06,64314.0,64313.0,2.59294178]
[1721262821230,1e-06,64314.0,64313.0,3.32211256]
[1721262821425,1e-06,64314.0,64313.0,3.24601256]
[1721262821632,1e-06,64314.0,64313.0,2.52080929]
[1721262822081,1e-06,64314.0,64313.0,2.83178829]
[1721262822441,1e-06,64314.0,64313.0,3.52783159]
[1721262822616,1e-06,64314.0,64313.0,3.36557138]
[1721262822831,1e-06,64314.0,64313.0,3.82828071]
[1721262823185,1e-06,64314.0,64313.0,3.82784003]
[1721262824259,1e-06,64314.0,64313.0,3.81384003]
[1721262824454,1e-06,64314.0,64313.0,3.79984003]
[1721262824654,1e-06,64314.0,64313.0,3.81384003]
[1721262824851,1e-06,64314.0,64313.0,3.82784003]
[1721262825423,1e-06,64314.0,64313.0,3.82750969]
[1721262825861,1e-06,64314.0,64313.0,3.36557138]
[1721262826095,0.00834,64325.0,64324.0,1.630382]
[1721262826306,0.00834,64325.0,64324.0,2.02509041]
[1721262827667,0.00834,64325.0,64324.0,2.03909041]
[1721262827979,0.00834,64325.0,64324.0,2.05309041]
[1721262829013,0.00834,64325.0,64324.0,2.09361216]
[1721262829229,0.00834,64325.0,64324.0,2.31841216]
[1721262829438,0.00834,64325.0,64324.0,2.36474861]
[1721262829730,0.00834,64325.0,64324.0,3.02436511]
[1721262829939,0.00834,64325.0,64324.0,2.97802866]
[1721262830565,0.00834,64325.0,64324.0,2.96402866]
[1721262830773,0.00684706,64325.0,64324.0,3.01841216]
[1721262831242,0.00684706,64325.0,64324.0,2.99041216]
[1721262831405,0.00684706,64325.0,64324.0,3.00441216]
[1721262831596,0.00684706,64325.0,64324.0,3.95107628]
[1721262831795,0.00684706,64325.0,64324.0,3.91069278]
[1721262831951,0.00684706,64325.0,64324.0,3.93707628]
[1721262832121,0.00684706,64325.0,64324.0,3.81951518]
[1721262832323,0.00684706,64325.0,64324.0,3.92829983]
[1721262832526,0.00684706,64325.0,64324.0,4.32337055]
[1721262832731,0.00684706,64325.0,64324.0,4.48471643]
[1721262832932,0.00684706,64325.0,64324.0,4.47071643]
[1721262833129,0.00684706,64325.0,64324.0,4.56331729]
[1721262833359,0.00684706,64325.0,64324.0,4.47054925]
[1721262833585,0.00684706,64325.0,64324.0,4.54912951]
[1721262833987,0.04179801,64344.0,64343.0,0.777085]
[1721262834189,0.0096165,64351.0,64346.0,0.466228]
[1721262834343,0.0096165,64351.0,64350.0,0.777]
[1721262834560,0.0096165,64351.0,64350.0,0.93138174]
[1721262834790,0.0096165,64351.0,64350.0,1.24218174]
[1721262835803,0.0096165,64351.0,64350.0,0.15438174]
[1721262836017,0.0096165,64351.0,64350.0,0.30978174]
[1721262836217,0.1650135,64351.0,64350.0,0.15438174]
[1721262836373,0.0096165,64351.0,64350.0,0.15438174]
[1721262836767,0.1650135,64351.0,64350.0,0.15438174]
[1721262837021,0.1478165,64351.0,64350.0,0.15438174]
[1721262837416,0.3032135,64351.0,64350.0,0.15438174]
[1721262837596,0.3032135,64351.0,64350.0,0.15538174]
[1721262838063,0.3032135,64351.0,64350.0,0.15438174]
[1721262838578,0.3032135,64351.0,64350.0,0.15638174]
[1721262840083,0.1478165,64351.0,64350.0,0.15638174]
[1721262840485,0.1382,64351.0,64350.0,0.15638174]
[1721262840687,0.1478165,64351.0,64350.0,0.15638174]
[1721262840886,0.3032135,64351.0,64350.0,0.15638174]
[1721262841826,0.1478165,64351.0,64350.0,0.15638174]
[1721262842794,0.1478165,64351.0,64350.0,0.15438174]
[1721262843015,0.1478165,64351.0,64350.0,0.30978174]
[1721262843245,0.1478165,64351.0,64350.0,0.62058174]
[1721262843469,0.1382,64351.0,64350.0,0.62058174]
[1721262844355,0.1478165,64351.0,64350.0,0.62258174]
[1721262844484,0.1382,64351.0,64350.0,0.62258174]
[1721262844730,0.1382,64351.0,64350.0,0.62058174]
[1721262844936,0.1382,64351.0,64350.0,0.62558174]
[1721262845913,0.1478165,64351.0,64350.0,0.62558174]
[1721262846459,0.1478165,64351.0,64350.0,0.31478174]
[1721262848139,0.1382,64351.0,64350.0,0.31478174]
[1721262848826,0.13903,64351.0,64350.0,0.31478174]
[1721262849085,0.13903,64351.0,64350.0,0.62558174]
[1721262849086,0.1486465,64351.0,64350.0,0.62558174]
[1721262849529,0.13903,64351.0,64350.0,0.62558174]
[1721262849758,0.1486465,64351.0,64350.0,0.31478174]
[1721262849994,0.3040435,64351.0,64350.0,0.15938174]
[1721262850293,0.6148385,64351.0,64350.0,0.15938174]
[1721262850718,0.0096165,64345.0,64344.0,0.000913]
[1721262850963,0.0096165,64345.0,64344.0,0.62153774]
[1721262851187,0.0665,64347.0,64346.0,0.155409]
[1721262851406,0.0665,64347.0,64346.0,0.30979074]
[1721262851874,0.0761165,64347.0,64346.0,0.30979074]
[1721262852620,0.0761165,64347.0,64346.0,0.15438174]
[1721262853068,0.2315235,64347.0,64346.0,0.15438174]
[1721262853284,0.221907,64347.0,64346.0,0.15438174]
[1721262853485,0.2315235,64347.0,64346.0,0.15438174]
[1721262854136,0.0761165,64347.0,64346.0,0.15438174]
[1721262854574,0.0665,64347.0,64346.0,0.15438174]
[1721262855010,0.0665,64347.0,64346.0,0.15838174]
[1721262855198,0.0761165,64347.0,64346.0,0.15838174]
[1721262855462,0.0761165,64347.0,64346.0,0.31379074]
[1721262855633,0.0761165,64347.0,64346.0,0.15838174]
[1721262855817,0.0665,64347.0,64346.0,0.15838174]
[1721262856017,0.0665,64347.0,64346.0,0.62460974]
[1721262856179,0.0761165,64347.0,64346.0,0.62460974]
[1721262857255,0.0761165,64347.0,64346.0,0.15838174]
[1721262857471,0.0761165,64347.0,64346.0,0.31379074]
[1721262858666,0.0761165,64347.0,64346.0,0.15838174]
[1721262860284,0.6214375,64347.0,64346.0,0.15838174]
[1721262860727,0.1552165,64347.0,64346.0,0.15838174]
[1721262860925,0.1552165,64347.0,64346.0,0.15438174]
[1721262861754,0.3106235,64347.0,64346.0,0.15438174]
[1721262861947,0.3106235,64347.0,64346.0,0.15638174]
[1721262862311,0.1552165,64347.0,64346.0,0.15638174]
[1721262862885,0.3106235,64347.0,64346.0,0.15638174]
[1721262863096,0.6214375,64347.0,64346.0,0.15638174]
[1721262863519,0.9322515,64347.0,64346.0,0.15638174]
[1721262863744,0.9322515,64347.0,64346.0,0.002]
[1721262864023,0.4758525,64345.0,64344.0,0.000913]
[1721262864200,0.4758525,64345.0,64344.0,0.15529474]
[1721262864837,0.4758525,64345.0,64344.0,0.000913]
[1721262865032,1.2446005,64345.0,64344.0,0.000913]
[1721262865337,1.32011564,64345.0,64344.0,0.001913]
[1721262865443,1.2446005,64345.0,64344.0,0.001913]
[1721262865870,1.2446005,64345.0,64344.0,0.000913]
[1721262866384,0.1567165,64345.0,64344.0,0.15529474]
[1721262866511,0.04657562,64350.0,64344.0,0.15529474]
[1721262866512,0.0096165,64346.0,64344.0,0.15529474]
[1721262866731,0.0096165,64345.0,64344.0,0.156327]
[1721262867339,0.002794,64348.0,64344.0,0.156327]